bitfinex-derivatives/quotes_BTCF0:USTF0_20260314
["timestamp","ask_amount","ask_price","bid_price","bid_amount"]
[1773514909181,0.042446,70667.0,70656.0,0.0014]
[1773514909487,0.05694756,70669.0,70656.0,0.043852]
[1773514909674,0.05694756,70669.0,70657.0,0.0014]
[1773514912689,0.05694756,70669.0,70663.0,0.00662704]
[1773514913386,0.01336793,70666.0,70650.0,0.01126]
[1773514913591,0.01336793,70662.0,70651.0,0.042455]
[1773514914589,0.01336793,70666.0,70650.0,0.01126]
[1773514914795,0.01336793,70666.0,70649.0,0.0014]
[1773514914984,0.0014,70665.0,70649.0,0.0014]
[1773514915793,0.01336793,70666.0,70649.0,0.0014]
[1773514916093,0.042447,70665.0,70652.0,0.042454]
[1773514918095,0.042448,70664.0,70652.0,0.042454]
[1773514919490,0.01336793,70660.0,70647.0,0.042457]
[1773514919697,0.01336793,70660.0,70648.0,0.042457]
[1773514920486,0.04245,70660.0,70646.0,0.043858]
[1773514920687,0.01336793,70659.0,70646.0,0.043858]
[1773514920997,0.01336793,70659.0,70642.0,0.01126]
[1773514921199,0.01336793,70659.0,70642.0,0.01266]
[1773514922087,0.07395717,70660.0,70642.0,0.05512]
[1773514922088,0.05582093,70656.0,70642.0,0.05512]
[1773514922899,0.05582093,70656.0,70643.0,0.04246]
[1773514930410,0.042458,70647.0,70631.0,0.01419065]
[1773514930595,0.0014,70646.0,70631.0,0.01419065]
[1773514930791,0.0014,70647.0,70632.0,0.01488275]
[1773514930997,0.0014,70647.0,70635.0,0.042465]
[1773514931309,0.0001367,70646.0,70635.0,0.042465]
[1773514933804,0.0001367,70646.0,70636.0,0.042464]
[1773514937001,0.0001367,70646.0,70637.0,0.042463]
[1773514938407,0.0001367,70646.0,70638.0,0.042463]
[1773514941005,0.01336793,70667.0,70633.0,0.01348275]
[1773514941306,0.042452,70657.0,70646.0,0.01348275]
[1773514942206,0.042452,70657.0,70644.0,0.042459]
[1773514943000,0.01226,70663.0,70650.0,0.042456]
[1773514943205,0.042449,70662.0,70649.0,0.01318973]
[1773514943798,0.01266,70663.0,70651.0,0.042455]
[1773514944410,0.01126,70663.0,70651.0,0.042455]
[1773514944711,0.042449,70663.0,70649.0,0.05564573]
[1773514945004,0.04245,70660.0,70646.0,0.042458]
[1773514945205,0.04245,70660.0,70647.0,0.0014]
[1773514945803,0.04245,70660.0,70647.0,0.043857]
[1773514948308,0.04245,70660.0,70648.0,0.042457]
[1773514950712,0.01266,70663.0,70649.0,0.042456]
[1773514950713,0.042449,70662.0,70649.0,0.042456]
[1773514952011,0.01266,70663.0,70649.0,0.042456]
[1773514952216,0.01266,70663.0,70647.0,0.05704773]
[1773514952416,0.04245,70660.0,70648.0,0.042457]
[1773514953113,0.0014,70670.0,70656.0,0.01318973]
[1773514953309,0.01441199,70680.0,70656.0,0.01318973]
[1773514953510,0.042446,70667.0,70656.0,0.01318973]
[1773514954009,0.0014,70670.0,70650.0,0.07398793]
[1773514954204,0.01441199,70669.0,70651.0,0.0014]
[1773514954917,0.01441199,70669.0,70652.0,0.042454]
[1773514955317,0.042447,70666.0,70653.0,0.042454]
[1773514959621,0.042447,70665.0,70653.0,0.042454]
[1773514965223,0.042446,70667.0,70654.0,0.042453]
[1773514965424,0.042447,70666.0,70654.0,0.0014]
[1773514966426,0.01441199,70667.0,70652.0,0.0014]
[1773514966629,0.042448,70663.0,70652.0,0.0014]
[1773514966829,0.01126,70670.0,70653.0,0.042454]
[1773514967133,0.0014,70669.0,70653.0,0.042454]
[1773514968022,0.042447,70666.0,70653.0,0.042454]
[1773514969133,0.042447,70666.0,70653.0,0.05564373]
[1773514969429,0.043846,70668.0,70654.0,0.01318973]
[1773514969621,0.042446,70667.0,70654.0,0.01318973]
[1773514971027,0.042446,70667.0,70654.0,0.05564273]
[1773514971936,0.01324924,70667.0,70650.0,0.07398793]
[1773514972140,0.01324924,70659.0,70646.0,0.01126]
[1773514972428,0.01324924,70658.0,70646.0,0.01126]
[1773514973334,0.01324924,70658.0,70645.0,0.0014]
[1773514973937,0.042453,70655.0,70645.0,0.0014]
[1773514981838,0.042453,70655.0,70650.0,0.00133371]
[1773514982138,0.042453,70655.0,70652.0,0.00194028]
[1773514982322,0.02450924,70658.0,70643.0,0.0014]
[1773514982323,0.01324924,70657.0,70643.0,0.0014]
[1773514982530,0.042454,70654.0,70643.0,0.0014]
[1773514986238,0.053711,70658.0,70645.0,0.042459]
[1773514986437,0.053711,70658.0,70646.0,0.01325374]
[1773514986638,0.053711,70658.0,70645.0,0.042459]
[1773514987032,0.055111,70658.0,70645.0,0.042459]
[1773514987438,0.053711,70658.0,70645.0,0.042459]
[1773514987638,0.055111,70658.0,70645.0,0.042459]
[1773514987938,0.053711,70658.0,70645.0,0.042459]
[1773514988537,0.01126,70658.0,70643.0,0.0014]
[1773514988839,0.01126,70658.0,70645.0,0.042459]
[1773514989930,0.042452,70657.0,70645.0,0.042459]
[1773514990131,0.01126,70658.0,70643.0,0.0014]
[1773514990327,0.042445,70668.0,70649.0,0.01325374]
[1773514990532,0.043845,70668.0,70649.0,0.01325374]
[1773514990741,0.043845,70668.0,70655.0,0.042453]
[1773514991735,0.52879547,70686.0,70652.0,0.0014]
[1773514991736,0.01324924,70676.0,70652.0,0.0014]
[1773514991932,0.07538793,70680.0,70647.0,0.00726]
[1773514991933,0.01324924,70658.0,70647.0,0.00726]
[1773514992127,0.01324924,70658.0,70643.0,0.0014]
[1773514992432,0.01324924,70658.0,70637.0,0.01325374]
[1773514992633,0.042453,70655.0,70642.0,0.04246]
[1773514993034,0.01324924,70658.0,70638.0,0.0014]
[1773514993737,0.042451,70659.0,70638.0,0.0014]
[1773514993941,0.042451,70659.0,70639.0,0.01325374]
[1773514994948,0.01126,70655.0,70645.0,0.042458]
[1773515002843,0.01126,70655.0,70646.0,0.042458]
[1773515012253,0.01126,70655.0,70644.0,0.0014]
[1773515012457,0.0014,70668.0,70656.0,0.042452]
[1773515012656,0.043846,70668.0,70656.0,0.042452]
[1773515012951,0.042446,70668.0,70656.0,0.042452]
[1773515013154,0.0014,70667.0,70656.0,0.042452]
[1773515013552,0.042446,70668.0,70656.0,0.042452]
[1773515013939,0.053706,70668.0,70656.0,0.042452]
[1773515014347,0.042446,70667.0,70654.0,0.042453]
[1773515015641,0.042447,70666.0,70654.0,0.042453]
[1773515017955,0.01126,70668.0,70652.0,0.01490326]
[1773515018459,0.01126,70668.0,70659.0,0.04245]
[1773515018756,0.42303637,70690.0,70653.0,0.01350326]
[1773515018757,0.0014,70675.0,70653.0,0.01350326]
[1773515018958,0.042442,70674.0,70661.0,0.042449]
[1773515019262,0.0143773,70681.0,70663.0,0.042448]
[1773515019560,0.0014,70680.0,70663.0,0.042448]
[1773515019749,0.042441,70676.0,70663.0,0.042448]
[1773515020264,0.043841,70676.0,70663.0,0.042448]
[1773515020655,0.042439,70678.0,70665.0,0.042447]
[1773515020857,0.0129773,70681.0,70665.0,0.042447]
[1773515020858,0.04384,70677.0,70665.0,0.042447]
[1773515021850,0.04244,70677.0,70665.0,0.042447]
[1773515022044,0.0014,70676.0,70665.0,0.042447]
[1773515022243,0.1250625,70688.0,70661.0,0.01490326]
[1773515022244,0.0143773,70689.0,70666.0,0.0875046]
[1773515022448,0.0129773,70685.0,70673.0,0.042442]
[1773515023353,0.0129773,70685.0,70674.0,0.042441]
[1773515023743,0.0129773,70685.0,70675.0,0.042441]
[1773515023949,0.01126,70686.0,70675.0,0.042441]
[1773515024953,0.042433,70688.0,70675.0,0.042441]
[1773515025650,0.0554103,70688.0,70675.0,0.042441]
[1773515026651,0.042434,70687.0,70673.0,0.042442]
[1773515026856,0.0554123,70686.0,70673.0,0.042442]
[1773515027844,0.0129773,70685.0,70673.0,0.042442]
[1773515029860,0.0129773,70685.0,70674.0,0.042441]
[1773515030163,0.0129773,70685.0,70667.0,0.0014]
[1773515030357,0.0129773,70681.0,70669.0,0.042444]
[1773515035456,0.0129773,70681.0,70670.0,0.042444]
[1773515036057,0.0014,70682.0,70670.0,0.042444]
[1773515039567,0.01126,70695.0,70671.0,0.01239928]
[1773515039767,0.01344328,70694.0,70668.0,0.0014]
[1773515039970,0.01344328,70693.0,70672.0,0.042442]
[1773515040269,0.042434,70686.0,70673.0,0.042442]
[1773515040469,0.043834,70686.0,70673.0,0.042442]
[1773515041672,0.042435,70685.0,70673.0,0.042442]
[1773515044070,0.04244,70677.0,70665.0,0.042447]
[1773515045570,0.0014,70679.0,70660.0,0.04245]
[1773515045571,0.042442,70673.0,70660.0,0.04245]
[1773515046369,0.042442,70673.0,70661.0,0.01126]
[1773515046773,0.0014,70672.0,70661.0,0.01126]
[1773515048575,0.0014,70672.0,70661.0,0.053709]
[1773515050478,0.0014,70672.0,70662.0,0.042448]
[1773515050778,0.0014,70672.0,70661.0,0.01126]
[1773515051467,0.042443,70671.0,70661.0,0.01126]
[1773515052775,0.042444,70671.0,70661.0,0.01126]
[1773515059784,0.13989485,70686.0,70665.0,0.042447]
[1773515059785,0.04244,70677.0,70665.0,0.042447]
[1773515059989,0.0014,70679.0,70665.0,0.01239928]
[1773515060389,0.042438,70680.0,70665.0,0.01239928]
[1773515060588,0.0014,70679.0,70665.0,0.01239928]
[1773515060988,0.0014,70679.0,70667.0,0.042445]
[1773515061182,0.042438,70680.0,70667.0,0.042445]
[1773515061183,0.043838,70680.0,70667.0,0.042445]
[1773515061489,0.042438,70680.0,70667.0,0.042445]
[1773515061690,0.0014,70679.0,70665.0,0.01239928]
[1773515061888,0.01126,70686.0,70665.0,0.01239928]
[1773515062087,0.042437,70683.0,70671.0,0.042443]
[1773515062481,0.0014,70682.0,70671.0,0.042443]
[1773515062889,0.0014,70681.0,70671.0,0.042443]
[1773515063288,0.042437,70683.0,70671.0,0.042443]
[1773515063489,0.0014,70682.0,70671.0,0.042443]
[1773515063690,0.0014,70681.0,70670.0,0.042444]
[1773515064088,0.042435,70685.0,70670.0,0.042444]
[1773515064295,0.01126,70686.0,70675.0,0.042441]
[1773515064500,0.0014,70684.0,70675.0,0.042441]
[1773515064790,0.01126,70686.0,70671.0,0.01206841]
[1773515064995,0.043835,70686.0,70673.0,0.042442]
[1773515067094,0.042435,70686.0,70673.0,0.042442]
[1773515067402,0.043835,70686.0,70673.0,0.042442]
[1773515072603,0.042435,70686.0,70673.0,0.042442]
[1773515072794,0.0014,70685.0,70673.0,0.042442]
[1773515073194,0.043835,70686.0,70673.0,0.042442]
[1773515074904,0.0014,70686.0,70674.0,0.042441]
[1773515076102,0.042434,70687.0,70674.0,0.042441]
[1773515076304,0.0014,70686.0,70674.0,0.042441]
[1773515077106,0.042434,70687.0,70674.0,0.042441]
[1773515077307,0.043835,70686.0,70674.0,0.042441]
[1773515077602,0.042435,70686.0,70674.0,0.042441]
[1773515077794,0.043835,70686.0,70674.0,0.042441]
[1773515079105,0.042435,70686.0,70674.0,0.042441]
[1773515079399,0.043835,70686.0,70674.0,0.042441]
[1773515079595,0.042435,70686.0,70674.0,0.042441]
[1773515079798,0.043835,70686.0,70674.0,0.042441]
[1773515080105,0.042435,70686.0,70674.0,0.042441]
[1773515080308,0.043835,70686.0,70674.0,0.042441]
[1773515081108,0.042435,70686.0,70674.0,0.042441]
[1773515081309,0.043835,70686.0,70675.0,0.042441]
[1773515082408,0.042435,70686.0,70675.0,0.042441]
[1773515082609,0.043835,70686.0,70675.0,0.042441]
[1773515082914,0.042435,70686.0,70675.0,0.042441]
[1773515083216,0.043835,70686.0,70675.0,0.042441]
[1773515083913,0.042435,70686.0,70675.0,0.042441]
[1773515084115,0.043835,70686.0,70675.0,0.042441]
[1773515084412,0.042435,70686.0,70675.0,0.042441]
[1773515084619,0.043835,70686.0,70675.0,0.042441]
[1773515085507,0.042435,70686.0,70675.0,0.042441]
[1773515085701,0.043835,70686.0,70675.0,0.042441]
[1773515086012,0.042435,70686.0,70675.0,0.042441]
[1773515086312,0.043835,70686.0,70675.0,0.042441]
[1773515087118,0.042435,70686.0,70675.0,0.042441]
[1773515087417,0.043835,70686.0,70675.0,0.042441]
[1773515088112,0.042435,70686.0,70675.0,0.042441]
[1773515088315,0.043835,70686.0,70675.0,0.042441]
[1773515088616,0.042435,70686.0,70675.0,0.042441]
[1773515088817,0.043835,70686.0,70675.0,0.042441]
[1773515089114,0.042435,70686.0,70675.0,0.042441]
[1773515089415,0.043835,70686.0,70675.0,0.042441]
[1773515089616,0.042435,70686.0,70675.0,0.042441]
[1773515089815,0.043835,70686.0,70675.0,0.042441]
[1773515090117,0.042435,70686.0,70675.0,0.042441]
[1773515090317,0.043835,70686.0,70675.0,0.042441]
[1773515090815,0.042435,70686.0,70675.0,0.042441]
[1773515091019,0.043835,70686.0,70675.0,0.042441]
[1773515091815,0.043835,70686.0,70673.0,0.042442]
[1773515092504,0.042435,70686.0,70673.0,0.042442]
[1773515092709,0.043835,70686.0,70673.0,0.042442]
[1773515094017,0.042435,70686.0,70673.0,0.042442]
[1773515094311,0.043835,70686.0,70673.0,0.042442]
[1773515094515,0.042435,70686.0,70673.0,0.042442]
[1773515094717,0.043835,70686.0,70673.0,0.042442]
[1773515095024,0.042435,70686.0,70673.0,0.042442]
[1773515095213,0.0014,70685.0,70673.0,0.042442]
[1773515095720,0.043835,70686.0,70673.0,0.042442]
[1773515096217,0.042435,70686.0,70673.0,0.042442]
[1773515096420,0.043835,70686.0,70673.0,0.042442]
[1773515097222,0.042435,70686.0,70673.0,0.042442]
[1773515097416,0.043835,70686.0,70673.0,0.042442]
[1773515097817,0.0014,70686.0,70671.0,0.01206841]
[1773515098016,0.0014,70687.0,70671.0,0.01206841]
[1773515098532,0.0014,70687.0,70679.0,0.042438]
[1773515098724,0.01280569,70692.0,70679.0,0.042438]
[1773515098926,0.042432,70690.0,70677.0,0.042439]
[1773515099226,0.04243,70693.0,70679.0,0.042438]
[1773515099621,0.0014,70692.0,70679.0,0.042438]
[1773515099923,0.01126,70695.0,70681.0,0.042437]
[1773515099924,0.053689,70695.0,70681.0,0.042437]
[1773515100625,0.001,70687.0,70681.0,0.042437]
[1773515100927,0.0014,70693.0,70681.0,0.042437]
[1773515101325,0.04243,70693.0,70681.0,0.042437]
[1773515101517,0.04383,70693.0,70681.0,0.042437]
[1773515104630,0.04383,70693.0,70679.0,0.0014]
[1773515104824,0.04383,70693.0,70680.0,0.042438]
[1773515105622,0.042431,70692.0,70680.0,0.042438]
[1773515109431,0.0124507,70690.0,70679.0,0.0014]
[1773515109626,0.0124507,70683.0,70672.0,0.0014]
[1773515110021,0.0124507,70683.0,70672.0,0.043842]
[1773515110426,0.0124507,70683.0,70672.0,0.042442]
[1773515110733,0.0124507,70683.0,70672.0,0.043842]
[1773515111529,0.0124507,70683.0,70672.0,0.042442]
[1773515111827,0.0138507,70686.0,70673.0,0.042442]
[1773515112934,0.042435,70685.0,70673.0,0.042442]
[1773515122343,0.042435,70685.0,70674.0,0.042441]
[1773515124046,0.0138507,70686.0,70674.0,0.042441]
[1773515150961,0.0014,70686.0,70669.0,0.01153722]
[1773515151376,0.0014,70686.0,70670.0,0.07393937]
[1773515151977,0.0014,70686.0,70676.0,0.04244]
[1773515153879,0.0014,70686.0,70681.0,0.00132674]
[1773515154273,0.0014,70686.0,70683.0,0.0019394]
[1773515155271,0.0014,70686.0,70684.0,0.0019394]
[1773515156284,0.0014,70686.0,70676.0,0.04244]
[1773515165588,0.03801635,70687.0,70676.0,0.04244]
[1773515165792,0.03062649,70687.0,70676.0,0.04244]
[1773515166087,0.02623156,70687.0,70676.0,0.04244]
[1773515168680,0.0014,70687.0,70676.0,0.04244]
[1773515169294,0.042433,70688.0,70676.0,0.04244]
[1773515169495,0.0014,70687.0,70676.0,0.04244]
[1773515169898,0.042433,70688.0,70676.0,0.04244]
[1773515170201,0.0014,70687.0,70676.0,0.04244]
[1773515171194,0.042433,70688.0,70676.0,0.04244]
[1773515171398,0.0014,70687.0,70676.0,0.04244]
[1773515171998,0.042433,70688.0,70676.0,0.04244]
[1773515172295,0.0014,70687.0,70676.0,0.04244]
[1773515173198,0.043834,70687.0,70674.0,0.042441]
[1773515189507,0.043834,70687.0,70675.0,0.042441]
[1773515200118,0.043834,70687.0,70670.0,0.07393427]
[1773515200119,0.0014,70687.0,70670.0,0.08525256]
[1773515201914,0.05381502,70695.0,70674.0,0.01131829]
[1773515202218,0.01126,70700.0,70678.0,0.01131829]
[1773515202219,0.053686,70700.0,70678.0,0.01131829]
[1773515202409,0.053686,70700.0,70686.0,0.042434]
[1773515202613,0.0014,70699.0,70686.0,0.042434]
[1773515202919,0.043827,70699.0,70686.0,0.042434]
[1773515203423,0.0014,70698.0,70686.0,0.042434]
[1773515204116,0.0014,70698.0,70687.0,0.042433]
[1773515204318,0.01126,70700.0,70688.0,0.042433]
[1773515204919,0.042426,70701.0,70688.0,0.042433]
[1773515205517,0.0014,70700.0,70688.0,0.042433]
[1773515205923,0.042426,70701.0,70688.0,0.042433]
[1773515206124,0.043826,70701.0,70688.0,0.042433]
[1773515206324,0.01138602,70706.0,70690.0,0.07393427]
[1773515206629,0.042424,70704.0,70686.0,0.01131829]
[1773515207213,0.0014,70703.0,70686.0,0.01131829]
[1773515207635,0.043824,70703.0,70690.0,0.042431]
[1773515209134,0.05521002,70703.0,70690.0,0.042431]
[1773515218941,0.01052411,70698.0,70670.0,0.07393427]
[1773515219146,0.01052411,70693.0,70682.0,0.042436]
[1773515220646,0.0014,70694.0,70680.0,0.07393427]
[1773515220847,0.0014,70694.0,70687.0,0.042434]
[1773515221046,0.043827,70698.0,70687.0,0.042434]
[1773515221447,0.043827,70698.0,70685.0,0.042435]
[1773515230258,0.042428,70697.0,70685.0,0.042435]
[1773515239161,0.01125,70709.0,70696.0,0.042428]
[1773515239368,0.01052411,70708.0,70687.0,0.07393427]
[1773515239559,0.01052411,70705.0,70693.0,0.04243]
[1773515240462,0.05494511,70709.0,70688.0,0.01153936]
[1773515240769,0.05534511,70709.0,70688.0,0.01153936]
[1773515241072,0.0014,70708.0,70688.0,0.01153936]
[1773515241568,0.05294511,70709.0,70688.0,0.01153936]
[1773515241865,0.05294511,70709.0,70696.0,0.042428]
[1773515242062,0.0014,70708.0,70696.0,0.042428]
[1773515242261,0.01052411,70709.0,70699.0,0.042426]
[1773515242470,0.01052411,70709.0,70694.0,0.0014]
[1773515242471,0.0014,70708.0,70694.0,0.0014]
[1773515242769,0.01052411,70709.0,70694.0,0.0014]
[1773515242960,0.0014,70708.0,70694.0,0.0014]
[1773515243971,0.0014,70708.0,70697.0,0.042428]
[1773515244560,0.0014,70708.0,70694.0,0.0014]
[1773515244561,0.042417,70715.0,70698.0,0.07393427]
[1773515244970,0.043817,70715.0,70698.0,0.07393427]
[1773515245273,0.042417,70715.0,70698.0,0.07393427]
[1773515245468,0.043817,70715.0,70698.0,0.07393427]
[1773515245669,0.042416,70716.0,70698.0,0.08424001]
[1773515246371,0.0014,70716.0,70705.0,0.042423]
[1773515246771,0.01125,70717.0,70705.0,0.042423]
[1773515246969,0.0014,70716.0,70705.0,0.042423]
[1773515249565,0.0014,70716.0,70705.0,0.04246302]
[1773515255178,0.043817,70716.0,70705.0,4.002e-05]
[1773515262290,0.05423547,70716.0,70705.0,4.002e-05]
[1773515267699,0.01041847,70715.0,70705.0,4.002e-05]
[1773515269907,0.043817,70716.0,70705.0,4.002e-05]
[1773515270308,0.05423547,70716.0,70705.0,4.002e-05]
[1773515272010,0.01033418,70715.0,70705.0,4.002e-05]
[1773515279115,0.01033418,70714.0,70705.0,4.002e-05]
[1773515281904,0.01033418,70714.0,70702.0,0.042424]
[1773515283118,0.01033418,70714.0,70703.0,0.042424]
[1773515301430,0.05275218,70714.0,70701.0,0.043825]
[1773515301631,0.01033418,70714.0,70703.0,0.042424]
[1773515308030,0.042417,70716.0,70704.0,0.042423]
[1773515309230,0.042415,70718.0,70701.0,0.01135779]
[1773515309728,0.042415,70718.0,70701.0,0.0014]
[1773515309928,0.042415,70718.0,70702.0,0.00995779]
[1773515311936,0.042415,70718.0,70704.0,0.042423]
[1773515319339,0.042416,70717.0,70704.0,0.042423]
[1773515319741,0.00957738,70719.0,70701.0,0.0014]
[1773515321038,0.042416,70717.0,70704.0,0.042423]
[1773515321839,0.042417,70716.0,70704.0,0.042423]
[1773515328640,0.05199438,70716.0,70704.0,0.042423]
[1773515328843,0.00957738,70698.0,70677.0,0.25354347]
[1773515329146,0.00296138,70698.0,70687.0,0.042433]
[1773515329339,0.00296138,70698.0,70687.0,0.043833]
[1773515329643,0.20094424,70697.0,70687.0,0.042433]
[1773515329846,0.21052162,70696.0,70687.0,0.043833]
[1773515330145,0.20094424,70695.0,70687.0,0.043833]
[1773515330338,0.20094424,70694.0,70687.0,0.042433]
[1773515330544,0.00957738,70696.0,70675.0,0.00995779]
[1773515330545,0.00957738,70696.0,70683.0,0.0014]
[1773515330744,0.20098103,70695.0,70686.0,0.042434]
[1773515330946,0.20098103,70694.0,70686.0,0.042434]
[1773515331240,0.00957738,70696.0,70686.0,0.042434]
[1773515331447,0.20092398,70695.0,70686.0,0.042434]
[1773515331744,0.20092398,70694.0,70686.0,0.042434]
[1773515331946,0.00957738,70696.0,70686.0,0.042434]
[1773515332242,0.20092433,70695.0,70686.0,0.042434]
[1773515332437,0.00957738,70696.0,70686.0,0.042434]
[1773515332645,0.20087769,70695.0,70686.0,0.042434]
[1773515332838,0.00957738,70696.0,70686.0,0.042434]
[1773515333044,0.20087769,70695.0,70686.0,0.042434]
[1773515333345,0.00957738,70696.0,70686.0,0.042434]
[1773515333546,0.20083905,70695.0,70686.0,0.042434]
[1773515333846,0.00957738,70696.0,70684.0,0.043835]
[1773515334047,0.20083922,70695.0,70684.0,0.043835]
[1773515334244,0.00957738,70696.0,70684.0,0.043835]
[1773515334448,0.2008049,70695.0,70684.0,0.043835]
[1773515334649,0.00957738,70696.0,70684.0,0.043835]
[1773515334853,0.2008049,70695.0,70684.0,0.043835]
[1773515335048,0.00957738,70696.0,70684.0,0.043835]
[1773515339950,0.20069318,70695.0,70684.0,0.043835]
[1773515340150,0.20069318,70694.0,70684.0,0.043835]
[1773515340352,0.00957738,70696.0,70684.0,0.042435]
[1773515340353,0.20069318,70693.0,70684.0,0.042435]
[1773515340553,0.20069318,70692.0,70684.0,0.043835]
[1773515340758,0.00957738,70696.0,70684.0,0.043835]
[1773515340955,0.20069913,70695.0,70684.0,0.043835]
[1773515341153,0.20069913,70694.0,70684.0,0.043835]
[1773515341353,0.20069913,70693.0,70684.0,0.043835]
[1773515341553,0.00957738,70696.0,70684.0,0.043835]
[1773515341754,0.20065738,70695.0,70684.0,0.043835]
[1773515341956,0.20065738,70694.0,70684.0,0.043835]
[1773515342156,0.20065738,70693.0,70684.0,0.043835]
[1773515342362,0.00957738,70696.0,70684.0,0.043835]
[1773515342657,0.20064114,70695.0,70684.0,0.043835]
[1773515342856,0.20064114,70694.0,70685.0,0.042434]
[1773515343059,0.20064114,70693.0,70686.0,0.042434]
[1773515343251,0.00957738,70696.0,70686.0,0.042434]
[1773515343452,0.20062967,70695.0,70686.0,0.042434]
[1773515343654,0.20062967,70694.0,70686.0,0.042434]
[1773515343953,0.00957738,70696.0,70686.0,0.042434]
[1773515344152,0.20062967,70695.0,70686.0,0.042434]
[1773515344350,0.20062967,70694.0,70686.0,0.042434]
[1773515344549,0.00957738,70696.0,70686.0,0.042434]
[1773515344747,0.20062418,70695.0,70686.0,0.042434]
[1773515344950,0.00957738,70696.0,70686.0,0.042434]
[1773515345160,0.20062418,70695.0,70686.0,0.042434]
[1773515345358,0.00957738,70696.0,70686.0,0.042434]
[1773515345560,0.20062245,70695.0,70686.0,0.042434]
[1773515345759,0.00957738,70696.0,70686.0,0.042434]
[1773515345960,0.20062245,70695.0,70686.0,0.042434]
[1773515346154,0.00957738,70696.0,70686.0,0.042434]
[1773515346357,0.20062444,70695.0,70686.0,0.042434]
[1773515346657,0.00957738,70696.0,70686.0,0.042434]
[1773515346957,0.20062444,70695.0,70686.0,0.042434]
[1773515347157,0.043827,70698.0,70686.0,0.042434]
[1773515347354,0.20063008,70697.0,70686.0,0.042434]
[1773515347558,0.20063008,70696.0,70686.0,0.042434]
[1773515347758,0.20063008,70695.0,70686.0,0.042434]
[1773515347955,0.043827,70698.0,70686.0,0.042434]
[1773515348152,0.20063008,70697.0,70686.0,0.042434]
[1773515348457,0.043827,70698.0,70686.0,0.042434]
[1773515348458,0.20063008,70696.0,70686.0,0.042434]
[1773515348658,0.20063008,70695.0,70686.0,0.042434]
[1773515348859,0.043827,70698.0,70686.0,0.042434]
[1773515349048,0.20063959,70697.0,70686.0,0.042434]
[1773515349251,0.20063959,70696.0,70687.0,0.042433]
[1773515349451,0.043827,70698.0,70687.0,0.042433]
[1773515349452,0.20063959,70695.0,70687.0,0.042433]
[1773515349652,0.05302759,70698.0,70687.0,0.042433]
[1773515349852,0.20065306,70697.0,70687.0,0.042433]
[1773515350056,0.20065306,70696.0,70687.0,0.042433]
[1773515350257,0.20065306,70695.0,70687.0,0.042433]
[1773515350457,0.20065306,70694.0,70687.0,0.042433]
[1773515350659,0.01060059,70698.0,70687.0,0.042433]
[1773515350960,0.20067065,70697.0,70687.0,0.042433]
[1773515351161,0.20067065,70696.0,70687.0,0.042433]
[1773515351362,0.20067065,70695.0,70687.0,0.042433]
[1773515351560,0.20067065,70694.0,70687.0,0.042433]
[1773515351761,0.00920059,70696.0,70685.0,0.042435]
[1773515351967,0.00920059,70694.0,70685.0,0.042435]
[1773515352159,0.00920059,70691.0,70681.0,0.0014]
[1773515352358,0.00920059,70689.0,70681.0,0.039837]
[1773515353660,0.00920059,70689.0,70682.0,0.042436]
[1773515354967,0.20078833,70688.0,70682.0,0.042436]
[1773515355167,0.00920059,70689.0,70682.0,0.042436]
[1773515355369,0.20082964,70688.0,70682.0,0.042436]
[1773515355672,0.00920059,70689.0,70682.0,0.042436]
[1773515355969,0.20082964,70688.0,70682.0,0.042436]
[1773515356165,0.00920059,70689.0,70682.0,0.042436]
[1773515356371,0.20088325,70688.0,70682.0,0.042436]
[1773515356572,0.20088325,70687.0,70682.0,0.042436]
[1773515356765,0.00920059,70689.0,70682.0,0.042436]
[1773515356965,0.20088334,70688.0,70682.0,0.042436]
[1773515357167,0.042428,70696.0,70684.0,0.042435]
[1773515357374,0.0014,70695.0,70684.0,0.042435]
[1773515359770,0.042428,70696.0,70684.0,0.042435]
[1773515364477,0.0014,70698.0,70683.0,0.0014]
[1773515364478,0.01073343,70694.0,70683.0,0.0014]
[1773515370291,0.01073343,70694.0,70683.0,0.043836]
[1773515370697,0.042429,70695.0,70683.0,0.043836]
[1773515402420,0.0014,70699.0,70687.0,0.042433]
[1773515405736,0.0014,70699.0,70688.0,0.042433]
[1773515410627,0.0014,70699.0,70684.0,0.01037944]
[1773515410930,0.053683,70706.0,70684.0,0.01037944]
[1773515411234,0.01126,70706.0,70694.0,0.042429]
[1773515411427,0.053683,70706.0,70694.0,0.042429]
[1773515412633,0.043823,70706.0,70694.0,0.042429]
[1773515413431,0.042423,70706.0,70694.0,0.042429]
[1773515413636,0.043823,70706.0,70694.0,0.042429]
[1773515413842,0.043823,70706.0,70692.0,0.04243]
[1773515414245,0.042423,70705.0,70692.0,0.04243]
[1773515415248,0.042424,70704.0,70692.0,0.04243]
[1773515417033,0.042424,70704.0,70691.0,0.0014]
[1773515417034,0.042425,70703.0,70691.0,0.0014]
[1773515430856,0.05325127,70703.0,70691.0,0.0014]
[1773515432755,0.042425,70702.0,70691.0,0.0014]
[1773515437062,0.05325127,70702.0,70691.0,0.0014]
[1773515453670,0.05325127,70702.0,70691.0,0.043831]
[1773515454058,0.01082627,70702.0,70692.0,0.04243]
[1773515455663,0.00947452,70709.0,70691.0,0.0014]
[1773515455868,0.05189552,70709.0,70696.0,0.042428]
[1773515458470,0.042422,70708.0,70696.0,0.042428]
[1773515460964,0.042422,70707.0,70694.0,0.042429]
[1773515461569,0.05189652,70707.0,70694.0,0.042429]
[1773515462380,0.042423,70706.0,70694.0,0.042429]
[1773515462570,0.00947452,70705.0,70694.0,0.022429]
[1773515462770,0.00947452,70705.0,70691.0,0.0014]
[1773515464071,0.00947452,70705.0,70692.0,0.04243]
[1773515464675,0.00947452,70705.0,70693.0,0.04243]
[1773515470481,0.042423,70706.0,70693.0,0.04243]
[1773515470775,0.00947452,70710.0,70691.0,0.01138799]
[1773515470978,0.042419,70712.0,70692.0,0.00998799]